bitfinex/quotes_ETHUSD_20260305
["timestamp","ask_amount","ask_price","bid_price","bid_amount"]
[1772712658131,1.4909052,2134.7,2134.5,0.0011]
[1772712660242,1.17117961,2134.6,2134.5,0.0011]
[1772712661243,1.4909052,2134.7,2134.5,0.0011]
[1772712661538,2.66203632,2134.7,2134.5,0.0011]
[1772712661741,1.17213112,2134.7,2134.5,0.0011]
[1772712661946,1.4899052,2134.6,2134.5,0.0011]
[1772712662437,2.66108481,2134.6,2134.5,0.0011]
[1772712662643,1.4899052,2134.5,2134.2,0.0011]
[1772712663817,1.4899052,2134.5,2134.0,0.0011]
[1772712664049,1.4899052,2134.3,2133.7,0.0011]
[1772712664554,1.4899052,2134.1,2133.2,1.54383097]
[1772712664751,1.4899052,2133.9,2133.1,1.17196858]
[1772712664920,1.4899052,2133.9,2132.9,1.54493097]
[1772712664921,1.4899052,2133.6,2132.9,0.0011]
[1772712665248,1.4899052,2133.3,2132.9,0.0011]
[1772712665435,1.4899052,2133.3,2132.6,0.0011]
[1772712665436,1.4899052,2133.2,2132.6,0.0011]
[1772712665615,2.41406309,2133.5,2132.6,0.0011]
[1772712665616,1.4899052,2133.5,2132.7,1.54383097]
[1772712665819,1.4899052,2133.5,2132.8,0.04688672]
[1772712666030,1.4899052,2133.5,2132.6,0.0011]
[1772712666525,1.4899052,2133.3,2132.6,0.0011]
[1772712666721,1.17183838,2133.4,2132.7,1.54383097]
[1772712667055,2.66173016,2133.5,2132.7,1.54383097]
[1772712668019,1.4899052,2133.5,2132.7,1.54383097]
[1772712668216,3.02875845,2133.6,2133.4,0.0011]
[1772712668427,1.857,2133.6,2133.4,0.0011]
[1772712668648,3.02873309,2133.6,2133.4,0.0011]
[1772712669145,1.857,2133.6,2133.4,0.0011]
[1772712669339,3.02874812,2133.6,2133.4,0.0011]
[1772712669731,1.17165297,2133.8,2133.4,0.0011]
[1772712669926,1.17159994,2133.9,2133.4,0.0011]
[1772712670126,3.02847756,2134.1,2133.4,1.54493097]
[1772712670551,3.02847756,2134.1,2133.4,2.71673887]
[1772712670749,3.02847756,2134.1,2133.4,1.54493097]
[1772712670958,4.51838276,2134.1,2133.4,1.54493097]
[1772712671255,4.51838276,2134.1,2133.4,2.7167652]
[1772712671954,1.4899052,2134.0,2133.4,0.0011]
[1772712672127,1.4899052,2134.0,2133.4,1.17293693]
[1772712672937,2.66146646,2134.0,2133.4,0.0011]
[1772712674646,0.9989,2133.4,2133.3,1.54383097]
[1772712675149,3.02849456,2134.1,2133.4,1.52529345]
[1772712675354,1.857,2134.1,2133.4,1.52529345]
[1772712675558,1.17234593,2134.3,2133.4,1.52529345]
[1772712675728,0.001,2134.3,2133.4,1.52529345]
[1772712677564,0.001,2134.3,2133.6,1.54383097]
[1772712679747,0.001,2134.3,2133.8,1.4719589]
[1772712680663,0.001,2134.3,2133.8,1.4730589]
[1772712681451,0.001,2134.7,2133.9,1.4719589]
[1772712681847,0.001,2134.7,2134.1,1.4719589]
[1772712683847,0.001,2134.7,2134.0,2.6434678]
[1772712684051,0.001,2134.7,2134.1,1.4719589]
[1772712685350,1.52452628,2134.7,2134.0,1.1715089]
[1772712685756,1.52452628,2134.7,2134.1,1.4719589]
[1772712685950,0.001,2134.7,2134.2,1.17139911]
[1772712686464,2.6956535,2134.7,2134.0,4.68593685]
[1772712689508,1.6328013,2134.6,2134.0,1.1715089]
[1772712689770,1.6328013,2134.6,2133.8,1.1726736]
[1772712691568,1.6328013,2134.4,2133.8,0.0011]
[1772712693463,1.6338013,2134.4,2133.8,0.0011]
[1772712693659,2.80511559,2134.4,2133.8,0.0011]
[1772712693860,2.80511559,2134.4,2133.8,0.01812329]
[1772712694071,4.68593792,2134.7,2133.8,0.01812329]
[1772712694072,0.001,2134.7,2133.9,1.53283493]
[1772712694255,0.001,2134.9,2134.3,1.53283493]
[1772712694762,1.6328013,2134.8,2133.9,3.08783493]
[1772712695178,1.6328013,2134.8,2133.9,1.53283493]
[1772712695882,1.6328013,2134.6,2134.0,1.21836925]
[1772712698151,2.80400777,2134.6,2134.0,1.21836925]
[1772712698677,2.80400777,2134.6,2133.9,6.21897355]
[1772712698678,1.6328013,2134.5,2133.8,1.17267409]
[1772712699353,1.6328013,2134.5,2133.8,2.70550902]
[1772712699552,1.17120647,2134.6,2133.9,1.57969748]
[1772712699774,2.80396756,2134.7,2133.9,1.57969748]
[1772712700276,2.80396756,2134.7,2134.0,2.70434383]
[1772712701989,1.6328013,2134.7,2134.0,2.70434383]
[1772712702186,1.6328013,2134.7,2134.2,1.17139911]
[1772712702382,2.80388467,2134.8,2134.2,2.70423404]
[1772712702889,1.6328013,2134.8,2134.2,2.70423404]
[1772712703684,0.001,2134.9,2134.3,1.53283493]
[1772712704256,0.001,2134.9,2134.4,1.17128935]
[1772712704579,1.6338013,2135.3,2134.5,1.53283493]
[1772712704975,1.6338013,2135.3,2134.5,0.53283493]
[1772712705474,0.001,2135.3,2134.5,0.53283493]
[1772712705871,0.001,2135.1,2134.5,0.53283493]
[1772712706386,0.001,2135.1,2134.7,0.60466958]
[1772712707263,0.001,2135.3,2134.7,0.60466958]
[1772712707264,0.001,2135.3,2134.7,0.60523758]
[1772712707463,2.80312616,2136.2,2134.7,0.60523758]
[1772712707662,2.80312616,2136.2,2134.8,0.60580759]
[1772712708205,1.6328013,2136.1,2134.8,0.60580759]
[1772712708403,1.6328013,2136.1,2135.0,0.60580759]
[1772712708404,1.6328013,2135.9,2135.0,0.60580759]
[1772712708594,1.6328013,2135.9,2135.1,0.60635069]
[1772712710501,1.6328013,2135.9,2135.2,1.78033989]
[1772712710698,1.6328013,2135.9,2135.3,0.6152645]
[1772712711614,2.79829736,2136.2,2135.3,0.6152645]
[1772712711801,1.62796776,2136.2,2135.3,0.6152645]
[1772712712694,1.62796776,2136.2,2135.4,1.79729603]
[1772712712895,2.79827328,2136.2,2135.4,1.79729603]
[1772712713205,1.62796776,2136.1,2135.4,1.79729603]
[1772712714316,0.001,2136.3,2135.5,0.63207284]
[1772712714618,1.62796776,2136.2,2135.6,1.1706312]
[1772712715406,1.62796776,2136.1,2135.6,1.1706312]
[1772712715791,1.62796776,2136.1,2135.4,4.68290263]
[1772712715991,1.62796776,2136.1,2135.4,1.17074084]
[1772712717308,1.17041198,2136.0,2135.4,1.17074084]
[1772712717510,1.62796776,2136.0,2135.5,0.04682744]
[1772712717812,0.001,2135.9,2135.4,1.17074084]
[1772712718192,1.62896776,2135.9,2135.4,1.17074084]
[1772712719012,0.001,2135.9,2135.5,0.65842421]
[1772712719184,1.62896776,2136.3,2135.6,0.65742421]
[1772712719562,1.62896776,2136.3,2135.7,1.17057639]
[1772712719922,1.62896776,2136.3,2135.7,1.83305959]
[1772712720297,0.001,2136.3,2135.7,1.17057639]
[1772712720505,0.001,2136.3,2135.8,0.6624832]
[1772712720903,0.001,2136.3,2135.7,1.17057639]
[1772712720904,1.62896776,2136.3,2135.7,1.17057639]
[1772712721143,1.62796776,2136.2,2135.7,1.17057639]
[1772712721437,1.1712545,2136.3,2135.4,1.17074084]
[1772712721438,1.62796776,2136.0,2135.4,1.17074084]
[1772712721639,1.62796776,2136.0,2135.3,2.72275619]
[1772712721920,1.62796776,2136.0,2135.2,1.17080766]
[1772712722496,1.62796776,2136.0,2135.1,1.17085712]
[1772712724137,1.62796776,2135.8,2135.1,1.17085712]
[1772712724806,1.62796776,2135.8,2135.0,0.0011]
[1772712725521,1.62796776,2135.8,2135.0,1.17204905]
[1772712726038,1.62796776,2135.8,2134.8,0.0011]
[1772712726039,1.62796776,2135.6,2134.8,0.0011]
[1772712728143,1.0,2135.1,2134.8,0.0011]
[1772712729504,2.62796776,2135.1,2135.0,0.0011]
[1772712732031,1.0,2135.1,2135.0,0.0011]
[1772712734611,1.62796776,2135.6,2135.0,0.73018936]
[1772712734811,1.62796776,2135.6,2135.1,0.04683621]
[1772712735014,1.62796776,2135.6,2135.1,0.77592557]
[1772712735210,1.62896776,2135.8,2135.1,0.77592557]
[1772712736020,1.822,2136.3,2135.1,0.04683621]
[1772712736226,1.62796776,2136.7,2135.3,0.76220299]
[1772712736423,1.62796776,2136.7,2135.5,0.76220299]
[1772712736629,1.62796776,2136.5,2135.5,0.76220299]
[1772712737228,1.822,2136.4,2135.6,0.81923047]
[1772712737534,1.62796776,2136.8,2135.6,0.82278152]
[1772712737751,1.821,2137.6,2135.7,0.82278152]
[1772712737752,1.62796776,2136.7,2135.7,0.82278152]
[1772712737910,1.62796776,2136.7,2135.5,4.17652409]
[1772712738113,1.1700833,2136.6,2135.6,1.1706312]
[1772712738321,1.62796776,2136.5,2135.6,1.1706312]
[1772712738521,1.62796776,2136.5,2135.6,1.99341272]
[1772712740239,1.68033207,2136.4,2135.6,1.99341272]
[1772712740756,1.68033207,2136.4,2135.6,1.1706312]
[1772712741624,1.68033207,2136.4,2135.8,0.0011]
[1772712741934,1.68033207,2136.2,2135.8,0.0011]
[1772712743317,0.001,2136.3,2135.8,0.0011]
[1772712744414,0.001,2136.3,2135.8,1.17162158]
[1772712744842,1.68133207,2136.3,2135.8,1.17162158]
[1772712745428,0.001,2136.3,2135.8,2.07532266]
[1772712746671,0.001,2136.3,2135.9,0.9094107]
[1772712746971,0.001,2136.3,2135.9,0.95622937]
[1772712747288,1.68033207,2136.8,2135.9,0.95622937]
[1772712747438,1.68033207,2136.8,2136.0,0.9094107]
[1772712748444,1.72077904,2137.3,2136.0,0.9094107]
[1772712748641,1.16975481,2137.2,2136.1,1.17035719]
[1772712748872,1.72077904,2137.1,2136.1,2.09030308]
[1772712749233,1.72077904,2137.1,2136.1,0.96676017]
[1772712749432,1.72077904,2137.1,2136.1,1.17035719]
[1772712750538,3.58257501,2137.2,2135.8,0.0011]
[1772712750539,1.72077904,2136.8,2135.8,0.0011]
[1772712750832,1.72077904,2136.6,2135.8,0.0011]
[1772712751367,1.72077904,2136.6,2135.5,1.17178602]
[1772712751527,1.72077904,2136.5,2135.5,1.17178602]
[1772712751731,1.72077904,2136.5,2135.3,0.0011]
[1772712751990,1.72077904,2136.2,2135.3,1.17189312]
[1772712752982,1.72077904,2136.0,2135.3,1.17189312]
[1772712753171,1.72077904,2136.0,2135.4,0.04682963]
[1772712754648,1.72077904,2136.0,2135.4,1.01174442]
[1772712754852,1.72077904,2136.0,2135.3,1.17189312]
[1772712755068,1.72077904,2136.0,2135.6,0.0011]
[1772712755263,1.72077904,2135.9,2135.6,0.0011]
[1772712755885,1.72077904,2135.9,2135.4,0.0011]
[1772712755886,1.72077904,2135.8,2135.4,0.0011]
[1772712756876,1.72077904,2135.8,2135.3,0.0011]
[1772712757065,1.72077904,2135.7,2135.3,0.0011]
[1772712757652,1.72077904,2135.7,2134.8,0.0011]
[1772712757653,1.72077904,2135.6,2134.8,0.0011]
[1772712757890,1.72077904,2135.5,2134.8,0.0011]
[1772712759054,1.72077904,2135.3,2134.8,0.0011]
[1772712761483,1.72077904,2135.6,2134.8,0.97997638]
[1772712761779,1.72077904,2135.6,2134.9,0.0468406]
[1772712762765,1.72077904,2135.6,2134.9,1.0295855]
[1772712762953,1.72077904,2135.8,2134.9,1.0295855]
[1772712763355,1.72077904,2135.6,2135.0,1.17096018]
[1772712763887,1.72077904,2135.6,2135.1,0.04683621]
[1772712764786,1.72077904,2135.8,2135.1,1.03327502]
[1772712764992,1.72077904,2135.8,2135.0,2.15739899]
[1772712765158,1.72077904,2135.8,2135.1,0.04683621]
[1772712765362,1.72077904,2135.8,2135.1,1.03327502]
[1772712765565,1.72077904,2135.8,2135.2,1.1708505]
[1772712765761,1.72077904,2135.8,2135.2,1.21768452]
[1772712765962,1.72077904,2135.7,2135.0,4.68373137]
[1772712768493,1.72077904,2135.6,2135.3,0.0011]
[1772712768695,1.72077904,2135.6,2134.8,0.0011]
[1772712768864,1.72077904,2135.6,2135.0,0.0011]
[1772712770364,1.8208284,2135.4,2135.0,0.0011]
[1772712773074,1.8208284,2135.2,2135.0,0.0011]
[1772712773906,1.8208284,2135.2,2134.8,0.0011]
[1772712779773,1.8208284,2135.1,2134.8,0.0011]
[1772712779974,1.8208284,2135.1,2134.6,0.04684718]
[1772712779975,1.8208284,2135.1,2134.5,0.0011]
[1772712780509,1.8208284,2135.1,2135.0,0.0011]
[1772712780510,2.99173374,2135.1,2135.0,0.0011]
[1772712780804,2.99173374,2135.1,2134.5,0.0011]
[1772712780805,1.8208284,2135.0,2134.5,0.0011]
[1772712781101,1.8208284,2135.0,2134.8,0.0011]
[1772712781298,1.8208284,2135.0,2134.5,0.0011]
[1772712783702,2.99170056,2135.2,2134.5,1.02145263]
[1772712783881,1.8208284,2135.2,2134.5,1.02145263]
[1772712784399,8.1518284,2135.4,2134.7,1.02035263]
[1772712784578,8.1518284,2135.4,2134.8,2.19244987]
[1772712784781,6.331,2135.4,2134.9,1.02137999]
[1772712785110,6.331,2135.4,2134.8,1.17106988]
[1772712785111,1.8208284,2135.3,2134.8,1.17106988]
[1772712785400,1.8208284,2135.3,2134.6,1.17117961]
[1772712786002,6.331,2135.4,2134.7,1.02237244]
[1772712786202,0.001,2135.4,2134.7,1.02237244]
[1772712786607,0.001,2135.4,2134.8,2.19440247]
[1772712787503,0.001,2135.4,2134.9,1.02333259]
[1772712788607,0.001,2135.4,2135.0,1.17096018]
[1772712788805,0.001,2135.4,2135.1,1.02515762]
[1772712788986,0.001,2135.4,2135.0,1.17096018]
[1772712789406,0.001,2135.4,2135.0,2.1961178]
[1772712790228,0.001,2135.4,2135.1,1.02602332]
[1772712790904,0.001,2135.4,2135.2,1.1708505]
[1772712791616,0.001,2135.8,2135.3,1.02766306]
[1772712792696,0.001,2135.8,2135.4,1.17074084]
[1772712792895,0.001,2135.8,2135.4,2.19820794]
[1772712796613,0.001,2135.8,2135.5,1.03027477]
[1772712797111,0.001,2135.8,2135.6,1.1706312]
[1772712797307,0.001,2135.8,2135.6,2.20090597]
[1772712797897,0.001,2135.8,2135.7,1.03090672]
[1772712798097,0.001,2135.8,2135.6,1.1706312]
[1772712799094,0.001,2135.8,2135.5,1.03426196]
[1772712801021,2.97136463,2136.3,2135.2,1.03432611]
[1772712801204,1.80108387,2136.3,2135.4,1.03432611]
[1772712801406,2.97133244,2136.3,2135.4,1.03432611]
[1772712801824,1.80008387,2136.2,2135.4,1.03432611]
[1772712803020,1.80008387,2136.2,2135.2,2.20613097]
[1772712803329,1.80008387,2136.0,2135.4,1.17074084]
[1772712803996,1.80008387,2136.0,2135.4,2.20649771]
[1772712804196,1.80008387,2136.0,2135.5,1.08258431]
[1772712804902,1.80008387,2136.0,2135.6,0.0011]
[1772712805103,1.80108387,2136.0,2135.6,0.0011]
[1772712805306,1.80008387,2135.9,2135.6,0.0011]
[1772712808023,0.001,2136.0,2135.6,0.0011]
[1772712808226,0.001,2136.0,2135.6,1.08764671]
[1772712809930,0.001,2136.0,2135.8,1.04027729]
[1772712812429,1.76860054,2136.3,2135.9,1.17046678]
[1772712813512,1.76860054,2136.5,2135.8,1.17048522]
[1772712813712,1.76860054,2136.4,2135.8,1.17048522]
[1772712814229,1.76860054,2136.4,2135.6,1.17172903]
[1772712814606,1.76860054,2136.2,2135.6,0.0011]
[1772712815108,1.76860054,2136.2,2135.6,1.04239883]
[1772712815308,1.76860054,2136.2,2135.6,1.08922407]
[1772712816704,1.17016923,2136.5,2135.8,1.041543]
[1772712816909,1.76860054,2136.4,2135.8,1.041543]
[1772712817533,1.76860054,2136.4,2136.1,0.0011]
[1772712820536,1.76860054,2136.9,2136.1,0.0011]
[1772712821214,1.76860054,2136.6,2135.6,0.0011]
[1772712821416,1.76860054,2136.5,2135.6,0.0011]
[1772712821615,1.76860054,2136.3,2135.6,0.0011]
[1772712822740,1.76860054,2136.1,2135.6,0.0011]
[1772712823235,1.76860054,2135.9,2135.6,0.0011]
[1772712825640,1.76860054,2135.8,2135.6,0.0011]
[1772712826445,1.76860054,2135.8,2134.9,4.68362137]
[1772712826446,1.76860054,2135.6,2134.2,3.20126553]
[1772712826654,1.76860054,2135.6,2134.0,4.20112837]
[1772712826655,1.76860054,2134.5,2134.0,0.0011]
[1772712826959,1.76860054,2134.3,2134.0,0.0011]
[1772712827114,4.56858294,2134.4,2134.0,0.0011]
[1772712827115,1.76860054,2134.2,2134.0,0.0011]
[1772712827617,2.94005454,2134.1,2134.0,0.0011]
[1772712830155,1.93199568,2134.0,2133.8,0.0011]
[1772712830965,1.93199568,2134.0,2133.7,0.0011]
[1772712831644,3.74299568,2134.0,2133.7,0.0011]
[1772712832218,2.49381301,2134.1,2133.7,1.29687311]
[1772712832423,4.30481301,2134.1,2133.7,1.29687311]
[1772712832623,2.49381301,2134.1,2133.7,1.29687311]
[1772712834224,2.49381301,2134.1,2133.8,1.1716187]
[1772712834755,2.49381301,2134.1,2133.7,2.46850591]
[1772712835724,2.49381301,2134.1,2133.8,1.29230178]
[1772712835953,2.49381301,2134.1,2133.7,1.1727328]
[1772712836939,4.42580869,2134.1,2133.7,1.1727328]
[1772712837259,2.49381301,2134.1,2133.7,1.1727328]
[1772712837626,2.49381301,2134.1,2133.8,1.29048092]
[1772712837854,2.39635557,2134.1,2133.8,1.29048092]
[1772712838327,2.39635557,2134.1,2133.9,1.1715638]
[1772712840083,2.39635557,2134.1,2133.9,2.46300846]
[1772712840943,1.93199568,2134.7,2134.1,1.29047987]
[1772712841266,3.98249564,2134.8,2134.1,1.29047987]
[1772712841563,4.12741407,2134.8,2134.1,1.29157987]
[1772712841769,0.99741874,2134.8,2134.1,1.29157987]
[1772712841941,3.12997596,2134.9,2134.1,1.29157987]
[1772712842136,1.95891843,2134.8,2134.1,1.29157987]
[1772712842774,1.17105753,2134.9,2134.1,1.29157987]
[1772712842970,3.77291843,2135.0,2134.3,0.14573282]
[1772712843371,4.94387947,2135.0,2134.3,0.14573282]
[1772712843783,3.77291843,2135.0,2134.3,0.14573282]
[1772712843950,4.94388013,2135.0,2134.3,0.14573282]
[1772712844153,3.12988013,2135.0,2134.3,0.14573282]
[1772712844549,1.95891843,2135.4,2134.3,0.14573282]
[1772712844753,1.95891843,2135.2,2134.3,0.14573282]
[1772712844956,3.12982241,2135.2,2134.5,0.14336217]
[1772712845157,4.94282241,2135.2,2134.5,0.14336217]
[1772712846082,1.95891843,2135.2,2134.5,0.14336217]
[1772712846382,3.12977021,2135.2,2134.5,0.14336217]
[1772712847576,1.95891843,2135.2,2134.6,1.32048246]
[1772712848388,3.12978363,2135.2,2134.6,1.32048246]
[1772712849066,1.95891843,2135.2,2134.6,1.32048246]
[1772712849266,1.95891843,2135.2,2134.7,0.1527755]
[1772712849690,1.95891843,2135.2,2134.8,1.17106988]
[1772712850093,3.12977199,2135.2,2134.7,1.32386126]
[1772712850792,1.95891843,2135.2,2134.7,1.32386126]
[1772712851158,1.95891843,2135.2,2134.3,1.17130216]
[1772712851159,1.95891843,2135.1,2134.3,1.17130216]
[1772712851358,1.95891843,2135.1,2134.4,0.04685157]
[1772712851589,1.95891843,2135.1,2134.3,1.17134114]
[1772712851776,1.95891843,2134.9,2134.2,0.16280654]
[1772712851984,1.95891843,2134.9,2134.3,0.2096603]
[1772712853087,1.95891843,2135.0,2134.4,0.16602389]
[1772712853881,1.95891843,2135.0,2134.5,1.17123448]
[1772712854080,1.95991843,2135.0,2134.5,1.34041386]
[1772712854278,0.001,2135.0,2134.6,0.21602656]
[1772712854795,0.001,2135.0,2134.7,0.17227377]
[1772712855887,0.001,2135.0,2134.8,1.17106988]
[1772712858086,0.001,2135.0,2134.8,1.35226771]
[1772712859804,0.001,2135.0,2134.9,0.19226984]
[1772712860011,0.001,2135.0,2134.8,1.36333972]
[1772712860687,0.001,2135.0,2134.8,1.17106988]
[1772712861472,0.001,2135.0,2134.7,1.17110078]
[1772712862682,0.001,2135.0,2134.7,1.37124893]
[1772712862879,0.001,2135.0,2134.8,0.24699094]
[1772712864675,0.001,2135.0,2134.8,1.41801428]
[1772712865577,0.001,2135.0,2134.8,1.21786613]
[1772712866404,0.001,2135.0,2134.8,1.21790953]
[1772712867107,1.95949235,2134.9,2134.2,0.20990084]
[1772712867311,1.95949235,2134.7,2134.1,0.0011]
[1772712867527,2.76236591,2134.6,2134.1,1.17255053]
[1772712867698,1.95949235,2134.6,2134.1,1.17252766]
[1772712868193,1.805,2134.9,2134.0,0.0011]
[1772712868194,1.97415383,2134.4,2134.0,0.0011]
[1772712868499,1.97415383,2134.4,2134.0,1.17260125]
[1772712868706,1.97415383,2134.4,2134.0,0.0011]
[1772712875299,1.97415383,2134.3,2134.0,0.0011]
[1772712875684,1.97415383,2134.5,2134.0,0.0011]
[1772712876512,1.97415383,2134.7,2134.0,0.23696038]
[1772712877076,0.04684294,2134.6,2134.0,0.23696038]
[1772712877716,0.04684294,2134.6,2134.2,1.17249911]
[1772712879084,1.97415383,2134.7,2134.2,1.41368848]
[1772712879794,2.02099677,2134.6,2134.2,1.17249911]
[1772712880819,2.02099677,2134.6,2134.2,0.0011]
[1772712881182,2.02099677,2134.6,2134.2,1.17249587]
[1772712881612,2.02099677,2134.6,2134.2,0.0011]
[1772712883206,0.04684294,2134.6,2134.2,0.24878849]
[1772712883399,3.14525598,2134.8,2134.2,0.24878849]
[1772712883400,0.04684294,2134.7,2134.2,0.24878849]
[1772712885414,2.02099677,2134.7,2134.2,0.24878849]
[1772712885606,1.97415383,2134.6,2134.0,0.0011]
[1772712885807,1.97415383,2134.4,2134.0,0.0011]
[1772712888119,1.97415383,2134.2,2134.0,0.0011]
[1772712889906,1.97515383,2134.2,2134.0,0.0011]
[1772712890597,0.001,2134.2,2134.0,0.0011]
[1772712892526,1.99274522,2134.2,2134.0,0.0011]
[1772712896336,2.03958816,2134.2,2134.0,0.0011]
[1772712896705,1.99274522,2134.2,2134.0,0.0011]
[1772712896908,2.03958816,2134.2,2134.0,0.0011]
[1772712897710,3.21100195,2134.2,2134.0,0.0011]
[1772712898038,2.03958816,2134.2,2134.0,0.0011]
[1772712898740,1.99274522,2134.2,2134.0,0.0011]
[1772712898922,2.03958816,2134.2,2134.0,0.0011]
[1772712899641,1.99274522,2134.2,2134.0,0.0011]
[1772712900742,0.001,2134.2,2134.0,0.0011]
[1772712901050,1.99174522,2134.0,2133.8,0.0011]
[1772712901260,1.99174522,2133.8,2133.4,0.0011]
[1772712901411,2.76780047,2133.9,2133.3,0.7460874]
[1772712901412,1.99174522,2133.6,2133.3,0.7460874]
[1772712901614,1.99174522,2133.4,2132.6,0.0011]
[1772712901838,2.76591582,2133.5,2132.7,0.0022]
[1772712901839,1.99174522,2133.2,2132.7,0.0022]
[1772712902048,1.99174522,2132.9,2132.7,0.0022]
[1772712903343,1.99174522,2132.9,2132.6,0.0011]
[1772712903344,1.99174522,2132.8,2132.6,0.0011]
[1772712903512,1.99174522,2132.8,2131.4,0.38541198]
[1772712903513,2.41514126,2132.6,2131.4,0.38541198]
[1772712903720,1.99174522,2132.3,2131.2,1.17413014]
[1772712903916,1.99174522,2132.1,2131.3,0.4356317]
[1772712904215,4.62939119,2132.4,2131.3,0.4356317]
[1772712904216,1.99174522,2131.9,2131.3,0.4356317]
[1772712904440,1.99174522,2131.9,2131.4,1.17293797]
[1772712904645,4.96230113,2132.1,2131.5,0.04691531]
[1772712904827,1.99174522,2132.0,2131.5,0.43562729]
[1772712906349,1.99174522,2132.2,2131.5,0.43562729]
[1772712906518,1.99174522,2132.1,2131.5,0.43562729]
[1772712906721,1.99174522,2132.1,2131.2,0.0011]
[1772712906936,1.99174522,2132.1,2131.3,0.38871198]
[1772712908223,1.99174522,2132.1,2131.2,1.20538886]
[1772712908431,3.78974522,2132.3,2131.4,0.32093573]
[1772712908638,2.27978593,2133.1,2131.7,0.41810594]
[1772712908639,1.99174522,2133.1,2131.7,0.41810594]
[1772712908839,4.09370545,2132.6,2131.9,0.41810594]
[1772712909051,4.09370545,2132.6,2131.8,0.41994971]
[1772712909052,4.09370545,2132.6,2132.1,0.41810594]
[1772712909228,1.99174522,2133.1,2132.3,0.41810594]
[1772712909557,1.99174522,2133.1,2132.4,0.44937491]
[1772712909765,0.04684294,2133.0,2132.4,0.41810594]
[1772712910952,0.04684294,2133.0,2132.2,0.38871198]
[1772712910953,2.03858816,2133.0,2132.5,0.38871198]
[1772712911162,2.03858816,2133.0,2132.3,1.56115488]
[1772712911742,2.03858816,2133.0,2132.3,2.09641885]
[1772712912748,1.99174522,2132.9,2132.3,0.38871198]
[1772712912956,1.99174522,2132.9,2132.3,1.56114269]
[1772712913766,2.03858816,2132.8,2132.3,0.29205495]
[1772712913954,0.04684294,2132.8,2132.3,1.99994744]
[1772712914262,0.001,2132.8,2132.4,0.04685509]
[1772712914431,0.001,2132.8,2132.5,0.29205495]
[1772712915054,1.99274522,2132.8,2132.1,1.17255214]
[1772712915246,1.99174522,2132.6,2132.1,1.17255214]
[1772712917136,1.99174522,2132.6,2131.8,5.22900189]
[1772712917137,0.001,2132.8,2132.3,0.53778419]
[1772712918053,0.001,2132.8,2132.4,0.8296263]
[1772712918391,1.99174522,2132.6,2132.0,0.29205495]
[1772712919846,1.99174522,2132.6,2132.1,1.17255288]
[1772712920245,0.04684294,2132.7,2132.2,0.83158066]
[1772712920454,0.001,2132.8,2132.3,0.53952571]
[1772712921148,0.001,2132.8,2132.4,0.04689551]
[1772712921549,0.001,2132.8,2132.5,0.29205495]
[1772712921865,0.04684294,2132.9,2132.0,1.17258276]
[1772712921866,2.07099542,2132.9,2132.0,1.17258276]
[1772712922166,2.07099542,2132.7,2132.0,1.17258276]
[1772712922364,2.11783836,2132.6,2132.1,0.29205495]
[1772712922566,2.11783836,2132.6,2131.8,0.53788845]
[1772712922567,2.11783836,2132.6,2131.8,1.17267381]
[1772712922761,2.11783836,2132.6,2132.0,0.29205495]
[1772712922960,2.11783836,2132.6,2131.6,1.17388506]
[1772712923261,2.11783836,2132.6,2131.6,1.17392596]
[1772712923450,2.11783836,2132.6,2131.7,0.29205495]
[1772712923857,2.07099542,2132.3,2131.6,0.0011]
[1772712924051,2.07099542,2132.3,2131.6,0.29315495]
[1772712924272,2.07099542,2132.3,2131.6,1.51289368]
[1772712925750,3.24343832,2132.3,2132.2,0.0011]
[1772712926366,2.07099542,2132.2,2132.0,0.0011]
[1772712926570,2.07099542,2132.2,2131.7,0.29315495]
[1772712927965,2.07099542,2132.0,2131.7,1.46592025]
[1772712928170,2.07099542,2132.0,2131.7,0.29315495]
[1772712928464,2.07099542,2132.0,2131.6,0.0011]
[1772712929750,1.17266288,2131.9,2131.6,0.0011]
[1772712929958,2.04544166,2131.8,2131.6,0.0011]
[1772712931869,1.1727729,2131.7,2131.6,0.0011]
[1772712933348,3.21821456,2131.7,2131.6,0.0011]
[1772712933866,2.04544166,2131.7,2131.6,0.0011]
[1772712934063,3.21809098,2132.0,2131.6,0.0011]
[1772712934268,2.04544166,2131.9,2131.6,0.0011]
[1772712934881,2.04544166,2131.9,2131.4,0.0011]
[1772712935259,0.04684294,2131.8,2131.4,0.0011]
[1772712935464,4.69032257,2132.1,2131.4,0.83779743]
[1772712935465,3.21801809,2132.1,2131.4,0.83779743]
[1772712935670,2.79952811,2132.0,2131.5,0.04691531]
[1772712935977,0.04684294,2132.0,2131.5,0.04691531]
[1772712936179,1.2194622,2132.0,2131.5,1.1728289]
[1772712936351,0.04684294,2132.0,2131.5,1.1728289]
[1772712936552,2.04544166,2131.9,2131.4,1.17398517]
[1772712936761,0.04684294,2131.8,2131.4,1.17398517]
[1772712937173,0.04684294,2131.8,2131.4,2.00950926]
[1772712937376,0.04684294,2132.0,2131.5,0.83552409]
[1772712937577,2.0922846,2132.1,2131.4,1.17398517]
[1772712937783,2.0922846,2132.1,2131.4,0.0011]
[1772712938050,2.04544166,2131.9,2131.8,0.0011]
[1772712938262,2.0922846,2131.9,2131.8,0.0011]
[1772712938666,5.0110361,2132.1,2131.8,0.0011]
[1772712938866,3.2180361,2132.1,2131.8,0.0011]
[1772712939279,0.04684294,2132.0,2131.8,0.0011]
[1772712940154,1.17266288,2131.9,2131.8,0.0011]
[1772712940380,3.21810454,2131.9,2131.8,0.0011]
[1772712940780,1.21949411,2132.0,2131.8,0.0011]
[1772712941366,3.26493577,2132.0,2131.8,0.0011]
[1772712941894,2.04544166,2131.9,2131.8,0.0011]
[1772712942096,2.04544166,2131.9,2131.5,0.0011]
[1772712942409,3.26500249,2131.8,2131.5,0.0011]
[1772712942703,2.0922846,2131.8,2131.5,0.0011]
[1772712945199,1.1727729,2131.7,2131.5,0.0011]
[1772712945370,2.04544166,2131.6,2131.5,0.0011]
[1772712945570,4.852862,2131.6,2131.5,0.0011]
[1772712947394,6.02568992,2131.6,2131.5,0.0011]
[1772712948090,2.04544166,2131.5,2131.4,0.0011]
[1772712948402,4.80821719,2131.5,2131.4,0.0011]
[1772712949207,4.80821719,2131.5,2131.1,0.0011]
[1772712949208,2.13405813,2131.4,2131.1,0.0011]
[1772712949501,2.13405813,2131.2,2131.1,0.0011]
[1772712949810,3.30710617,2131.2,2131.1,0.0011]
[1772712949987,6.0695162,2131.2,2131.1,0.0011]
[1772712950697,5.73245807,2131.2,2131.1,0.0011]
[1772712951209,2.13405813,2131.1,2130.4,1.60476254]